[Event "*** SCC Grand Prix: Titled Tuesday Blitz"]
[Site "Chess.com"]
[Date "2020.10.06"]
[Round "4"]
[White "queen_iryna"]
[Black "SharapovEvgeny"]
[Result "1/2-1/2"]
[WhiteElo "2306"]
[BlackElo "2464"]
[TimeControl "180+1"]
[EndTime "10:38:57 PDT"]
[Termination "Game drawn by repetition"]

1. e4 {[%clk 0:03:00.9]} 1... c5 {[%clk 0:02:59.3]} 2. Nf3 {[%clk 0:03:01]} 2...
d6 {[%clk 0:02:59.1]} 3. Bb5+ {[%clk 0:03:00.3]} 3... Nd7 {[%clk 0:02:58.3]} 4.
d4 {[%clk 0:02:57]} 4... cxd4 {[%clk 0:02:57.5]} 5. Qxd4 {[%clk 0:02:57]} 5...
e5 {[%clk 0:02:56.9]} 6. Qd1 {[%clk 0:02:47.6]} 6... h6 {[%clk 0:02:55.2]} 7.
O-O {[%clk 0:02:46.2]} 7... Nf6 {[%clk 0:02:54.6]} 8. Nc3 {[%clk 0:02:42.3]}
8... Be7 {[%clk 0:02:54]} 9. h3 {[%clk 0:02:37.4]} 9... O-O {[%clk 0:02:53.2]}
10. Be3 {[%clk 0:02:37.3]} 10... a6 {[%clk 0:02:52.3]} 11. Bd3 {[%clk 0:02:29]}
11... b5 {[%clk 0:02:51.2]} 12. Nd5 {[%clk 0:02:28.9]} 12... Nxd5 {[%clk
0:02:49.4]} 13. exd5 {[%clk 0:02:29.8]} 13... f5 {[%clk 0:02:47.9]} 14. Be2
{[%clk 0:02:19.1]} 14... Bb7 {[%clk 0:02:45.2]} 15. c4 {[%clk 0:02:18.6]} 15...
bxc4 {[%clk 0:02:41.8]} 16. Bxc4 {[%clk 0:02:19.5]} 16... Rc8 {[%clk 0:02:23.3]}
17. Bb3 {[%clk 0:02:11]} 17... Nc5 {[%clk 0:02:22]} 18. Nxe5 {[%clk 0:01:58.8]}
18... dxe5 {[%clk 0:01:57.8]} 19. d6+ {[%clk 0:01:58.6]} 19... Kh8 {[%clk
0:01:54.1]} 20. Bxc5 {[%clk 0:01:45.4]} 20... Rxc5 {[%clk 0:01:51.2]} 21. dxe7
{[%clk 0:01:45.5]} 21... Qxe7 {[%clk 0:01:51]} 22. Rc1 {[%clk 0:01:42.5]} 22...
Rfc8 {[%clk 0:01:41.7]} 23. Rxc5 {[%clk 0:01:40.9]} 23... Qxc5 {[%clk
0:01:41.1]} 24. Qd7 {[%clk 0:01:33.7]} 24... Qc6 {[%clk 0:01:30.3]} 25. Qxc6
{[%clk 0:01:28.8]} 25... Rxc6 {[%clk 0:01:26.5]} 26. Re1 {[%clk 0:01:28.1]}
26... e4 {[%clk 0:01:19.8]} 27. Rd1 {[%clk 0:01:15.8]} 27... Rc7 {[%clk
0:01:14.8]} 28. Be6 {[%clk 0:00:59.4]} 28... f4 {[%clk 0:01:07]} 29. Bf5 {[%clk
0:00:55]} 29... g5 {[%clk 0:01:02.9]} 30. Rd8+ {[%clk 0:00:51.2]} 30... Kg7
{[%clk 0:01:02.1]} 31. Rd7+ {[%clk 0:00:52.1]} 31... Rxd7 {[%clk 0:01:01.8]} 32.
Bxd7 {[%clk 0:00:53]} 32... a5 {[%clk 0:00:56.6]} 33. a3 {[%clk 0:00:51.3]}
33... Kf6 {[%clk 0:00:55.7]} 34. b4 {[%clk 0:00:51.2]} 34... axb4 {[%clk
0:00:55.3]} 35. axb4 {[%clk 0:00:52.1]} 35... Ke5 {[%clk 0:00:55.4]} 36. Kf1
{[%clk 0:00:51.6]} 36... Kd4 {[%clk 0:00:53.9]} 37. b5 {[%clk 0:00:48.6]} 37...
Bd5 {[%clk 0:00:46.4]} 38. g3 {[%clk 0:00:45.4]} 38... Bc4+ {[%clk 0:00:41.9]}
39. Ke1 {[%clk 0:00:45]} 39... Kc5 {[%clk 0:00:40.5]} 40. gxf4 {[%clk
0:00:42.4]} 40... gxf4 {[%clk 0:00:40]} 41. Bc6 {[%clk 0:00:39.6]} 41... e3
{[%clk 0:00:34.5]} 42. fxe3 {[%clk 0:00:38.7]} 42... fxe3 {[%clk 0:00:34.4]} 43.
Bd7 {[%clk 0:00:36]} 43... Bxb5 {[%clk 0:00:27.2]} 44. Bxb5 {[%clk 0:00:30.7]}
44... Kxb5 {[%clk 0:00:25.6]} 45. Ke2 {[%clk 0:00:31.6]} 45... Kc5 {[%clk
0:00:25.7]} 46. Kxe3 {[%clk 0:00:31.9]} 46... Kd5 {[%clk 0:00:25.9]} 47. Kf4
{[%clk 0:00:30.6]} 47... Ke6 {[%clk 0:00:23.5]} 48. h4 {[%clk 0:00:28.7]} 48...
Kf6 {[%clk 0:00:23.1]} 49. h5 {[%clk 0:00:28.9]} 49... Ke6 {[%clk 0:00:23.1]}
50. Ke4 {[%clk 0:00:28.8]} 50... Kf6 {[%clk 0:00:23.2]} 51. Kf4 {[%clk
0:00:29.1]} 51... Ke6 {[%clk 0:00:23.5]} 52. Ke4 {[%clk 0:00:29.3]} 52... Kf6
{[%clk 0:00:23.7]} 53. Kf4 {[%clk 0:00:29.6]} 1/2-1/2

[Event "*** SCC Grand Prix: Titled Tuesday Blitz"]
[Site "Chess.com"]
[Date "2020.10.06"]
[Round "4"]
[White "Azerichess"]
[Black "Alexander_Donchenko"]
[Result "1-0"]
[WhiteElo "2918"]
[BlackElo "2762"]
[TimeControl "180+1"]
[EndTime "10:39:00 PDT"]
[Termination "Azerichess won by resignation"]

1. d4 {[%clk 0:03:00.9]} 1... d5 {[%clk 0:02:59.7]} 2. c4 {[%clk 0:03:01]} 2...
dxc4 {[%clk 0:03:00.1]} 3. Nf3 {[%clk 0:02:56.6]} 3... a6 {[%clk 0:02:59.3]} 4.
e4 {[%clk 0:02:48.5]} 4... b5 {[%clk 0:02:58.3]} 5. Qc2 {[%clk 0:02:44.6]} 5...
Bb7 {[%clk 0:02:57.6]} 6. b3 {[%clk 0:02:40.1]} 6... cxb3 {[%clk 0:02:53.5]} 7.
axb3 {[%clk 0:02:41]} 7... e6 {[%clk 0:02:52.7]} 8. Nbd2 {[%clk 0:02:37.5]} 8...
Nf6 {[%clk 0:02:51.2]} 9. Bb2 {[%clk 0:02:35.6]} 9... Nc6 {[%clk 0:02:48.3]} 10.
Rc1 {[%clk 0:02:30.9]} 10... Rc8 {[%clk 0:02:39.1]} 11. Be2 {[%clk 0:02:16]}
11... Nb4 {[%clk 0:02:38.5]} 12. Qb1 {[%clk 0:02:15.5]} 12... c5 {[%clk
0:02:21.5]} 13. O-O {[%clk 0:02:15.1]} 13... cxd4 {[%clk 0:02:21.2]} 14. Nxd4
{[%clk 0:02:09.1]} 14... Be7 {[%clk 0:02:16.3]} 15. e5 {[%clk 0:01:58.4]} 15...
Nfd5 {[%clk 0:02:12]} 16. Bf3 {[%clk 0:01:58.5]} 16... O-O {[%clk 0:02:07.2]}
17. Ne4 {[%clk 0:01:58.2]} 17... Rxc1 {[%clk 0:01:58.3]} 18. Rxc1 {[%clk
0:01:57.7]} 18... Qa8 {[%clk 0:01:58.6]} 19. Nd6 {[%clk 0:01:49.6]} 19... Rd8
{[%clk 0:01:26.6]} 20. Ba3 {[%clk 0:01:47.3]} 20... Bxd6 {[%clk 0:01:10.9]} 21.
exd6 {[%clk 0:01:48.2]} 21... Rxd6 {[%clk 0:01:11.8]} 22. Qe4 {[%clk 0:01:36.3]}
22... h6 {[%clk 0:01:00.8]} 23. h4 {[%clk 0:01:35.2]} 23... Rd8 {[%clk 0:00:57]}
24. Bb2 {[%clk 0:01:29.4]} 24... Rc8 {[%clk 0:00:52]} 25. Re1 {[%clk 0:01:24.7]}
25... Rc7 {[%clk 0:00:27.3]} 26. Bh5 {[%clk 0:01:01.2]} 26... Qf8 {[%clk
0:00:26.3]} 27. Nxe6 {[%clk 0:00:47.5]} 27... fxe6 {[%clk 0:00:22.1]} 28. Qxe6+
{[%clk 0:00:48.4]} 28... Rf7 {[%clk 0:00:18.2]} 29. Re4 {[%clk 0:00:29.7]} 29...
Nd3 {[%clk 0:00:16.8]} 30. Bxg7 {[%clk 0:00:21.4]} 30... Qe7 {[%clk 0:00:03.6]}
31. Qxh6 {[%clk 0:00:17]} 31... Rxg7 {[%clk 0:00:02.6]} 32. Rxe7 {[%clk
0:00:17.1]} 32... Nxe7 {[%clk 0:00:03]} 33. Qe6+ {[%clk 0:00:15.2]} 33... Kh8
{[%clk 0:00:02.7]} 34. Qh6+ {[%clk 0:00:15.2]} 34... Kg8 {[%clk 0:00:02.5]} 35.
Qe6+ {[%clk 0:00:14.2]} 35... Kh8 {[%clk 0:00:02.7]} 36. g3 {[%clk 0:00:13.9]}
36... Nf4 {[%clk 0:00:02.5]} 37. Qh6+ {[%clk 0:00:13.8]} 1-0

[Event "*** SCC Grand Prix: Titled Tuesday Blitz"]
[Site "Chess.com"]
[Date "2020.10.06"]
[Round "4"]
[White "profofchess"]
[Black "MikeSailer"]
[Result "1-0"]
[WhiteElo "2393"]
[BlackElo "2077"]
[TimeControl "180+1"]
[EndTime "10:39:00 PDT"]
[Termination "profofchess won on time"]

1. e4 {[%clk 0:02:48.3]} 1... d5 {[%clk 0:02:59.2]} 2. exd5 {[%clk 0:02:47.7]}
2... Qxd5 {[%clk 0:02:59.4]} 3. Nc3 {[%clk 0:02:47.1]} 3... Qd6 {[%clk
0:02:59.8]} 4. d4 {[%clk 0:02:47.2]} 4... Nf6 {[%clk 0:03:00.2]} 5. Nf3 {[%clk
0:02:47.4]} 5... c6 {[%clk 0:03:00.8]} 6. Ne5 {[%clk 0:02:47.4]} 6... Nbd7
{[%clk 0:03:01.1]} 7. Nc4 {[%clk 0:02:47.6]} 7... Qc7 {[%clk 0:03:01.3]} 8. Qf3
{[%clk 0:02:48.2]} 8... Nb6 {[%clk 0:03:01.3]} 9. Bf4 {[%clk 0:02:48.3]} 9...
Qd7 {[%clk 0:02:58.9]} 10. Ne5 {[%clk 0:02:43.4]} 10... Qd8 {[%clk 0:02:56.4]}
11. O-O-O {[%clk 0:02:40.2]} 11... Be6 {[%clk 0:02:43.6]} 12. Kb1 {[%clk
0:02:26.1]} 12... Nbd5 {[%clk 0:02:39.3]} 13. Bg3 {[%clk 0:02:08.5]} 13... Nxc3+
{[%clk 0:02:38.3]} 14. Qxc3 {[%clk 0:02:08.4]} 14... g6 {[%clk 0:02:18.9]} 15.
Bc4 {[%clk 0:02:03.3]} 15... Bxc4 {[%clk 0:02:18]} 16. Qxc4 {[%clk 0:02:03.1]}
16... Qd5 {[%clk 0:02:15]} 17. Qb4 {[%clk 0:01:57]} 17... Bg7 {[%clk 0:01:32.3]}
18. Qxb7 {[%clk 0:01:40.2]} 18... O-O {[%clk 0:01:32.4]} 19. Qxc6 {[%clk
0:01:36.6]} 19... Qa5 {[%clk 0:01:25]} 20. Qc5 {[%clk 0:01:22]} 20... Qa6 {[%clk
0:01:08.2]} 21. Qxe7 {[%clk 0:01:16.3]} 21... Rab8 {[%clk 0:00:53.4]} 22. Nd3
{[%clk 0:00:56.1]} 22... Rb7 {[%clk 0:00:39]} 23. Qe1 {[%clk 0:00:53]} 23... Qb5
{[%clk 0:00:26.9]} 24. Qb4 {[%clk 0:00:21.5]} 24... Qc6 {[%clk 0:00:13.3]} 25.
Qa3 {[%clk 0:00:18.3]} 25... Rc8 {[%clk 0:00:09.1]} 26. Nc5 {[%clk 0:00:18.3]}
26... Rb5 {[%clk 0:00:03.8]} 27. Rhe1 {[%clk 0:00:15.3]} 27... Bf8 {[%clk
0:00:04]} 28. Qa6 {[%clk 0:00:06.3]} 28... Qxa6 {[%clk 0:00:02.2]} 29. Nxa6
{[%clk 0:00:05.8]} 29... Nd5 {[%clk 0:00:02.9]} 30. Ka1 {[%clk 0:00:03.8]} 30...
Rc6 {[%clk 0:00:01.9]} 31. Nc5 {[%clk 0:00:03.4]} 31... Rcb6 {[%clk 0:00:01.5]}
32. c4 {[%clk 0:00:01.4]} 1-0

[Event "*** SCC Grand Prix: Titled Tuesday Blitz"]
[Site "Chess.com"]
[Date "2020.10.06"]
[Round "4"]
[White "Skatchkov_V"]
[Black "gmpeter008"]
[Result "1-0"]
[WhiteElo "2584"]
[BlackElo "2363"]
[TimeControl "180+1"]
[EndTime "10:39:02 PDT"]
[Termination "Skatchkov_V won by resignation"]

1. d4 {[%clk 0:03:00.8]} 1... Nf6 {[%clk 0:02:54.9]} 2. c4 {[%clk 0:03:00.9]}
2... e6 {[%clk 0:02:54.7]} 3. Nf3 {[%clk 0:03:00.7]} 3... b6 {[%clk 0:02:53.8]}
4. g3 {[%clk 0:03:01.1]} 4... Ba6 {[%clk 0:02:52.9]} 5. b3 {[%clk 0:03:01.1]}
5... Bb4+ {[%clk 0:02:52.9]} 6. Bd2 {[%clk 0:03:01.5]} 6... Be7 {[%clk
0:02:53.3]} 7. Bg2 {[%clk 0:03:02]} 7... O-O {[%clk 0:02:53.5]} 8. O-O {[%clk
0:03:02.3]} 8... Bb7 {[%clk 0:02:53.1]} 9. Nc3 {[%clk 0:02:59.2]} 9... Ne4
{[%clk 0:02:53.3]} 10. Qc2 {[%clk 0:02:33.8]} 10... Nxc3 {[%clk 0:02:52]} 11.
Bxc3 {[%clk 0:02:33.5]} 11... f5 {[%clk 0:02:46.9]} 12. d5 {[%clk 0:02:33.4]}
12... Na6 {[%clk 0:02:27.1]} 13. Rad1 {[%clk 0:02:31]} 13... Qc8 {[%clk
0:02:25.1]} 14. Nd4 {[%clk 0:02:22]} 14... Nc5 {[%clk 0:02:24.3]} 15. b4 {[%clk
0:02:11.9]} 15... Ne4 {[%clk 0:01:56.2]} 16. Bxe4 {[%clk 0:02:10.2]} 16... fxe4
{[%clk 0:01:56]} 17. Qxe4 {[%clk 0:02:10.2]} 17... Bf6 {[%clk 0:01:49.6]} 18.
Qg2 {[%clk 0:02:00.8]} 18... c5 {[%clk 0:01:18.4]} 19. dxc6 {[%clk 0:01:27.2]}
19... dxc6 {[%clk 0:01:18.2]} 20. c5 {[%clk 0:01:27.4]} 20... a5 {[%clk
0:01:13]} 21. Qe4 {[%clk 0:01:14]} 21... axb4 {[%clk 0:01:03]} 22. Bxb4 {[%clk
0:01:14.9]} 22... Rxa2 {[%clk 0:01:02]} 23. Nxe6 {[%clk 0:00:38.2]} 23... Re8
{[%clk 0:00:57.1]} 24. Rd6 {[%clk 0:00:37.9]} 24... Ra4 {[%clk 0:00:48.2]} 25.
Qc4 {[%clk 0:00:16.3]} 25... b5 {[%clk 0:00:41.2]} 26. Qb3 {[%clk 0:00:15.2]}
26... Rxb4 {[%clk 0:00:31.1]} 27. Qxb4 {[%clk 0:00:15.6]} 27... Rxe6 {[%clk
0:00:31.5]} 28. Qb3 {[%clk 0:00:15.7]} 28... Kf7 {[%clk 0:00:31.6]} 29. Rfd1
{[%clk 0:00:16.4]} 29... Ke7 {[%clk 0:00:31.8]} 30. Qd3 {[%clk 0:00:11.8]} 30...
Rxd6 {[%clk 0:00:17.1]} 31. cxd6+ {[%clk 0:00:12.7]} 31... Kd8 {[%clk
0:00:15.3]} 32. d7 {[%clk 0:00:12.9]} 32... Qc7 {[%clk 0:00:12.8]} 33. Qxh7
{[%clk 0:00:13.6]} 33... Qe5 {[%clk 0:00:05.1]} 34. Qg8+ {[%clk 0:00:14]} 34...
Kc7 {[%clk 0:00:05.6]} 35. d8=Q+ {[%clk 0:00:14.3]} 1-0

[Event "*** SCC Grand Prix: Titled Tuesday Blitz"]
[Site "Chess.com"]
[Date "2020.10.06"]
[Round "4"]
[White "AlexOstrovskiy"]
[Black "Ranindu2003"]
[Result "1-0"]
[WhiteElo "2759"]
[BlackElo "2593"]
[TimeControl "180+1"]
[EndTime "10:39:04 PDT"]
[Termination "AlexOstrovskiy won by resignation"]

1. d4 {[%clk 0:03:00.9]} 1... Nf6 {[%clk 0:02:59.7]} 2. Bf4 {[%clk 0:03:00]}
2... e6 {[%clk 0:02:57.5]} 3. e3 {[%clk 0:02:59.1]} 3... d5 {[%clk 0:02:57.6]}
4. Nd2 {[%clk 0:02:57.1]} 4... c5 {[%clk 0:02:57.8]} 5. c3 {[%clk 0:02:57]} 5...
Nc6 {[%clk 0:02:58.3]} 6. Ngf3 {[%clk 0:02:54.2]} 6... cxd4 {[%clk 0:02:57.8]}
7. exd4 {[%clk 0:02:54.1]} 7... Nh5 {[%clk 0:02:58]} 8. Be3 {[%clk 0:02:54.2]}
8... Bd6 {[%clk 0:02:57.5]} 9. Ne5 {[%clk 0:02:54.1]} 9... g6 {[%clk 0:02:57]}
10. Nd3 {[%clk 0:02:52]} 10... Bd7 {[%clk 0:02:46.5]} 11. g3 {[%clk 0:02:51.5]}
11... O-O {[%clk 0:02:44.9]} 12. Bg2 {[%clk 0:02:51.8]} 12... f5 {[%clk
0:02:42.5]} 13. Bh6 {[%clk 0:02:40.9]} 13... Re8 {[%clk 0:02:32.6]} 14. Nf3
{[%clk 0:02:40.8]} 14... f4 {[%clk 0:02:18.1]} 15. Qe2 {[%clk 0:02:33]} 15...
Rc8 {[%clk 0:01:53.8]} 16. gxf4 {[%clk 0:02:16.2]} 16... Ne7 {[%clk 0:01:20.8]}
17. Nfe5 {[%clk 0:02:08]} 17... Bb5 {[%clk 0:01:16.8]} 18. a4 {[%clk 0:01:59.8]}
18... Ba6 {[%clk 0:01:14.8]} 19. Bg5 {[%clk 0:01:55.7]} 19... Rc4 {[%clk
0:01:15.5]} 20. Nxc4 {[%clk 0:01:50.8]} 20... Bxc4 {[%clk 0:01:14.4]} 21. Bh3
{[%clk 0:01:15.1]} 21... Bxd3 {[%clk 0:01:01]} 22. Qxd3 {[%clk 0:01:10]} 22...
Bxf4 {[%clk 0:01:00.7]} 23. Bh4 {[%clk 0:00:44.1]} 23... Qb6 {[%clk 0:00:54.6]}
24. O-O {[%clk 0:00:40.3]} 24... Nf5 {[%clk 0:00:50.1]} 25. Bg3 {[%clk
0:00:40.2]} 25... Qd6 {[%clk 0:00:37]} 26. Rfe1 {[%clk 0:00:33]} 26... Nf6
{[%clk 0:00:34.6]} 27. Qf3 {[%clk 0:00:18.9]} 27... Bxg3 {[%clk 0:00:33.4]} 28.
hxg3 {[%clk 0:00:19.8]} 28... Ne4 {[%clk 0:00:33.3]} 29. Bxf5 {[%clk 0:00:17.5]}
29... exf5 {[%clk 0:00:33]} 30. Qf4 {[%clk 0:00:16.2]} 30... Qd7 {[%clk
0:00:19.4]} 31. f3 {[%clk 0:00:16.3]} 31... g5 {[%clk 0:00:19.9]} 32. Qe3 {[%clk
0:00:11.8]} 32... f4 {[%clk 0:00:13.6]} 33. gxf4 {[%clk 0:00:12.7]} 33... gxf4
{[%clk 0:00:07.9]} 34. Qxf4 {[%clk 0:00:13.6]} 34... Kh8 {[%clk 0:00:06.6]} 35.
fxe4 {[%clk 0:00:11.3]} 35... Rg8+ {[%clk 0:00:02.9]} 36. Kf2 {[%clk 0:00:11.8]}
36... Qe6 {[%clk 0:00:01.4]} 37. Qe5+ {[%clk 0:00:11.8]} 1-0

[Event "*** SCC Grand Prix: Titled Tuesday Blitz"]
[Site "Chess.com"]
[Date "2020.10.06"]
[Round "4"]
[White "MrTattaglia"]
[Black "grzechu96"]
[Result "1-0"]
[WhiteElo "2883"]
[BlackElo "2685"]
[TimeControl "180+1"]
[EndTime "10:39:08 PDT"]
[Termination "MrTattaglia won on time"]

1. Nf3 {[%clk 0:02:57.6]} 1... Nf6 {[%clk 0:02:58.5]} 2. c4 {[%clk 0:02:57.1]}
2... c5 {[%clk 0:02:58.7]} 3. g3 {[%clk 0:02:57]} 3... d5 {[%clk 0:02:58.4]} 4.
cxd5 {[%clk 0:02:56.6]} 4... Nxd5 {[%clk 0:02:59.3]} 5. Bg2 {[%clk 0:02:56.8]}
5... Nc6 {[%clk 0:03:00]} 6. d4 {[%clk 0:02:57.1]} 6... cxd4 {[%clk 0:02:59.7]}
7. Nxd4 {[%clk 0:02:57.6]} 7... Ndb4 {[%clk 0:02:52.7]} 8. Nxc6 {[%clk
0:02:57.6]} 8... Qxd1+ {[%clk 0:02:52.4]} 9. Kxd1 {[%clk 0:02:58.5]} 9... Nxc6
{[%clk 0:02:52.9]} 10. Bxc6+ {[%clk 0:02:58.9]} 10... bxc6 {[%clk 0:02:53.8]}
11. f3 {[%clk 0:02:59.3]} 11... Be6 {[%clk 0:02:47.9]} 12. Be3 {[%clk
0:02:57.9]} 12... g6 {[%clk 0:02:38]} 13. Nc3 {[%clk 0:02:57.6]} 13... Bg7
{[%clk 0:02:38.5]} 14. Rc1 {[%clk 0:02:57.9]} 14... Bxc3 {[%clk 0:02:20.1]} 15.
Rxc3 {[%clk 0:02:57.1]} 15... Bxa2 {[%clk 0:02:20.4]} 16. Rxc6 {[%clk
0:02:56.5]} 16... O-O {[%clk 0:01:47.9]} 17. Rc7 {[%clk 0:02:40.1]} 17... Rfb8
{[%clk 0:01:44]} 18. Kc2 {[%clk 0:02:20.5]} 18... Rc8 {[%clk 0:01:43.8]} 19. Rc3
{[%clk 0:02:20.8]} 19... Rxc3+ {[%clk 0:01:42.6]} 20. bxc3 {[%clk 0:02:21.7]}
20... Bc4 {[%clk 0:01:41.6]} 21. Re1 {[%clk 0:02:19.7]} 21... a5 {[%clk
0:01:18.5]} 22. Bc5 {[%clk 0:02:19.6]} 22... Kf8 {[%clk 0:01:18.6]} 23. e4
{[%clk 0:02:14.8]} 23... a4 {[%clk 0:01:14.1]} 24. Kb2 {[%clk 0:02:13.9]} 24...
Rd8 {[%clk 0:01:05.8]} 25. Bd4 {[%clk 0:02:08.7]} 25... f6 {[%clk 0:00:37.8]}
26. f4 {[%clk 0:02:03.9]} 26... Kf7 {[%clk 0:00:35.4]} 27. Ka3 {[%clk
0:02:03.7]} 27... Bb3 {[%clk 0:00:35.4]} 28. g4 {[%clk 0:02:00.3]} 28... g5
{[%clk 0:00:33.7]} 29. fxg5 {[%clk 0:01:59.6]} 29... fxg5 {[%clk 0:00:33.4]} 30.
Rf1+ {[%clk 0:02:00.1]} 30... Kg6 {[%clk 0:00:33.1]} 31. Rf5 {[%clk 0:01:55.1]}
31... h6 {[%clk 0:00:27.6]} 32. Rb5 {[%clk 0:01:42.2]} 32... Rf8 {[%clk
0:00:18]} 33. Rb6+ {[%clk 0:01:40.9]} 33... Kh7 {[%clk 0:00:14.1]} 34. Rb7
{[%clk 0:01:39.9]} 34... Rf7 {[%clk 0:00:10]} 35. Kb4 {[%clk 0:01:39.3]} 35...
Kg6 {[%clk 0:00:09.3]} 36. c4 {[%clk 0:01:37.7]} 36... Rf4 {[%clk 0:00:04.7]}
37. Rxe7 {[%clk 0:01:36.6]} 37... Rxg4 {[%clk 0:00:05.1]} 38. c5 {[%clk
0:01:36.6]} 38... Bc2 {[%clk 0:00:03.6]} 39. Rg7+ {[%clk 0:01:27.6]} 39... Kh5
{[%clk 0:00:03.8]} 40. c6 {[%clk 0:01:27.8]} 40... Bxe4 {[%clk 0:00:02.2]} 41.
c7 {[%clk 0:01:28]} 41... Bf5 {[%clk 0:00:02.6]} 42. Kc5 {[%clk 0:01:24.7]}
42... a3 {[%clk 0:00:03.1]} 43. Rf7 {[%clk 0:01:24.8]} 43... Be6 {[%clk
0:00:02.9]} 44. Re7 {[%clk 0:01:22.3]} 44... Bf5 {[%clk 0:00:03.4]} 45. Re5
{[%clk 0:01:21]} 45... Bd7 {[%clk 0:00:02.7]} 46. Re3 {[%clk 0:01:17.6]} 46...
a2 {[%clk 0:00:02.5]} 47. Ra3 {[%clk 0:01:15.2]} 47... Rg2 {[%clk 0:00:02]} 48.
h3 {[%clk 0:01:15.1]} 48... Bf5 {[%clk 0:00:01.7]} 49. Be5 {[%clk 0:01:04.2]}
49... Rc2+ {[%clk 0:00:02.2]} 50. Kd6 {[%clk 0:00:59.4]} 50... Kg6 {[%clk
0:00:02]} 51. Ke7 {[%clk 0:00:58.9]} 51... h5 {[%clk 0:00:02.3]} 52. Ra6+ {[%clk
0:00:59]} 52... Kh7 {[%clk 0:00:02.8]} 53. Kf7 {[%clk 0:00:54]} 53... Bxh3
{[%clk 0:00:02.6]} 54. Ra8 {[%clk 0:00:52.1]} 54... Rxc7+ {[%clk 0:00:01.1]} 55.
Bxc7 {[%clk 0:00:51.7]} 1-0

[Event "*** SCC Grand Prix: Titled Tuesday Blitz"]
[Site "Chess.com"]
[Date "2020.10.06"]
[Round "4"]
[White "annazero"]
[Black "Matveev_Vladimir"]
[Result "0-1"]
[WhiteElo "2392"]
[BlackElo "2621"]
[TimeControl "180+1"]
[EndTime "10:39:09 PDT"]
[Termination "Matveev_Vladimir won on time"]

1. d4 {[%clk 0:02:59.9]} 1... Nf6 {[%clk 0:02:55.3]} 2. Nf3 {[%clk 0:02:59]}
2... g6 {[%clk 0:02:55.5]} 3. g3 {[%clk 0:02:59.3]} 3... Bg7 {[%clk 0:02:56]} 4.
Bg2 {[%clk 0:02:58.9]} 4... O-O {[%clk 0:02:56.3]} 5. O-O {[%clk 0:02:58.6]}
5... d6 {[%clk 0:02:56.7]} 6. c4 {[%clk 0:02:58]} 6... Nc6 {[%clk 0:02:56.9]} 7.
Nc3 {[%clk 0:02:54.7]} 7... Bf5 {[%clk 0:02:56.7]} 8. Ne1 {[%clk 0:02:47.7]}
8... Na5 {[%clk 0:02:53.6]} 9. b3 {[%clk 0:02:39.7]} 9... c5 {[%clk 0:02:49.5]}
10. e3 {[%clk 0:02:23.2]} 10... a6 {[%clk 0:02:41.3]} 11. Bb2 {[%clk 0:02:14.7]}
11... Rb8 {[%clk 0:02:38.8]} 12. Qe2 {[%clk 0:02:08.2]} 12... Qc8 {[%clk
0:01:56]} 13. dxc5 {[%clk 0:01:42.1]} 13... dxc5 {[%clk 0:01:53.4]} 14. Nd5
{[%clk 0:01:32.6]} 14... Nxd5 {[%clk 0:01:50.6]} 15. Bxg7 {[%clk 0:01:31]} 15...
Kxg7 {[%clk 0:01:48.2]} 16. Bxd5 {[%clk 0:01:30.2]} 16... b5 {[%clk 0:01:44.1]}
17. cxb5 {[%clk 0:00:54.9]} 17... axb5 {[%clk 0:01:42.9]} 18. Rc1 {[%clk
0:00:55.1]} 18... c4 {[%clk 0:01:22.4]} 19. bxc4 {[%clk 0:00:49.8]} 19... Nxc4
{[%clk 0:01:21.1]} 20. Bxc4 {[%clk 0:00:44.8]} 20... bxc4 {[%clk 0:01:22]} 21.
Qxc4 {[%clk 0:00:43.2]} 21... Qb7 {[%clk 0:01:09.4]} 22. f3 {[%clk 0:00:37.5]}
22... Be6 {[%clk 0:01:06.4]} 23. Qd4+ {[%clk 0:00:33.2]} 23... Kg8 {[%clk
0:01:06.2]} 24. a4 {[%clk 0:00:29.1]} 24... Rfd8 {[%clk 0:01:04.9]} 25. Qh4
{[%clk 0:00:28.8]} 25... Rd2 {[%clk 0:01:01.2]} 26. Rf2 {[%clk 0:00:19.6]} 26...
Qb2 {[%clk 0:00:56.8]} 27. Rc2 {[%clk 0:00:16.3]} 27... Rxc2 {[%clk 0:00:43.5]}
28. Rxc2 {[%clk 0:00:17.2]} 28... Qa3 {[%clk 0:00:36.6]} 29. Qd4 {[%clk
0:00:13.3]} 29... h5 {[%clk 0:00:27.3]} 30. Kf2 {[%clk 0:00:11.7]} 30... Kh7
{[%clk 0:00:26.8]} 31. Qd3 {[%clk 0:00:11.7]} 31... Qxa4 {[%clk 0:00:24.2]} 32.
Ng2 {[%clk 0:00:11.7]} 32... Bf5 {[%clk 0:00:20.9]} 33. e4 {[%clk 0:00:11.6]}
33... Be6 {[%clk 0:00:20.9]} 34. Ne3 {[%clk 0:00:11.9]} 34... Rb1 {[%clk
0:00:19.3]} 35. Re2 {[%clk 0:00:09.2]} 35... Qa1 {[%clk 0:00:18.2]} 36. e5
{[%clk 0:00:05.9]} 36... Rh1 {[%clk 0:00:17.7]} 37. Rc2 {[%clk 0:00:01.8]} 37...
Rxh2+ {[%clk 0:00:17.1]} 0-1